fUST/lending_fUST_20250806
["ID","MTS","AMOUNT","RATE_DAILY","PERIOD"]
[377549784,1754439576373,460.0,0.00031179,30]
[377549785,1754439577626,460.0,0.00031179,30]
[377549786,1754439577898,279.42,0.00031179,30]
[377549787,1754439594016,460.0,0.00031179,30]
[377549788,1754439595233,605.68,0.00031179,30]
[377549789,1754439609632,557.75,0.00031179,30]
[377549790,1754439610507,460.0,0.00031179,30]
[377549791,1754439610854,460.0,0.00031179,30]
[377549792,1754439611114,206.8,0.00031179,30]
[377549793,1754439612194,460.0,0.00031179,30]
[377549794,1754439613259,460.0,0.00031179,30]
[377549795,1754439623133,460.0,0.00031179,30]
[377549796,1754439623371,460.0,0.00031179,30]
[377549797,1754439623606,429.69,0.00031179,30]
[377549798,1754439624151,522.69,0.00031179,30]
[377549799,1754439634975,460.0,0.00031179,30]
[377549800,1754439635218,460.0,0.00031179,30]
[377549801,1754439635308,460.0,0.00031179,30]
[377549802,1754439637781,564.52,0.00031179,30]
[377549803,1754439639955,460.0,0.00031179,30]
[377549804,1754439640253,460.0,0.00031179,30]
[377549805,1754439640523,353.77,0.00031179,30]
[377549806,1754439652114,460.0,0.00031179,30]
[377549807,1754439653945,460.0,0.00031179,30]
[377549808,1754439654206,460.0,0.00031179,30]
[377549809,1754439663694,464.5125654,0.00031179,30]
[377549810,1754439670364,460.0,0.00031179,30]
[377549811,1754439670630,460.0,0.00031179,30]
[377549812,1754439672507,460.0,0.00031179,30]
[377549813,1754439672822,490.42,0.00031179,30]
[377549814,1754439674040,460.0,0.00031179,30]
[377549815,1754439674430,460.0,0.00031179,30]
[377549816,1754439675226,460.0,0.00031179,30]
[377549817,1754439679530,460.0,0.00031179,30]
[377549818,1754439689463,460.0,0.00031179,30]
[377549819,1754439696032,460.0,0.00031179,30]
[377549820,1754439696923,460.0,0.00031179,30]
[377549821,1754439700747,460.0,0.00031179,30]
[377549822,1754439713003,236.79499639,0.00031179,30]
[377549823,1754439715841,460.0,0.00031179,30]
[377549824,1754439729895,460.0,0.00031179,30]
[377549825,1754439746914,460.0,0.00031179,30]
[377549826,1754439758931,460.0,0.00031179,30]
[377549827,1754439760857,460.0,0.00031179,30]
[377549828,1754439761841,460.0,0.00031179,30]
[377549829,1754439762730,460.0,0.00031179,30]
[377549830,1754439763345,460.0,0.00031179,30]
[377549831,1754439763605,344.82,0.00031179,30]
[377549832,1754439766279,460.0,0.00031179,30]
[377549833,1754439769271,460.0,0.00031179,30]
[377549834,1754439769525,469.96996308,0.00031179,30]
[377549835,1754439776095,460.0,0.00031179,30]
[377549836,1754439776376,460.0,0.00031179,30]
[377549837,1754439776767,460.0,0.00031179,30]
[377549838,1754439777824,460.0,0.00031179,30]
[377549839,1754439778387,460.0,0.00031179,30]
[377549840,1754439778811,445.52,0.00031179,30]
[377549841,1754439779032,460.0,0.00031179,30]
[377549842,1754439779334,460.0,0.00031179,30]
[377549843,1754439779776,460.0,0.00031179,30]
[377549844,1754439780218,522.69,0.00031179,30]
[377549845,1754439781078,460.0,0.00031179,30]
[377549846,1754439786761,460.0,0.00031179,30]
[377549847,1754439794609,460.0,0.00031179,30]
[377549848,1754439794979,289.87,0.00031179,30]
[377549849,1754439798118,460.0,0.00031179,30]
[377549850,1754439798365,460.0,0.00031179,30]
[377549851,1754439798621,353.77,0.00031179,30]
[377549852,1754439804313,460.0,0.00031179,30]
[377549853,1754439804695,553.54,0.00031179,30]
[377549854,1754439804778,460.0,0.00031179,30]
[377549855,1754439806500,460.0,0.00031179,30]
[377549856,1754439810381,460.0,0.00031179,30]
[377549857,1754439814408,460.0,0.00031179,30]
[377549858,1754439814672,459.73,0.00031179,30]
[377549859,1754439814994,460.0,0.00031179,30]
[377549860,1754439815082,460.0,0.00031179,30]
[377549861,1754439815316,460.0,0.00031179,30]
[377549862,1754439815599,460.0,0.00031179,30]
[377549863,1754439815886,460.0,0.00031179,30]
[377549864,1754439816158,460.0,0.00031179,30]
[377549865,1754439816910,460.0,0.00031179,30]
[377549866,1754439818083,460.0,0.00031179,30]
[377549867,1754439818340,460.0,0.00031179,30]
[377549868,1754439818590,460.0,0.00031179,30]
[377549869,1754439818846,293.05,0.00031179,30]
[377549870,1754439825572,456.2178715,0.00031179,30]
[377549871,1754439825850,460.0,0.00031179,30]
[377549872,1754439829589,323.34260802,0.00031179,30]
[377549873,1754439835196,460.0,0.00031179,30]
[377549874,1754439835381,460.0,0.00031179,30]
[377549875,1754439835629,500.76,0.00031179,30]
[377549876,1754439836464,460.0,0.00031179,30]
[377549877,1754439841603,460.0,0.00031179,30]
[377549878,1754439851760,500.0,0.00031179,30]
[377549879,1754439857516,460.0,0.00031179,30]
[377549880,1754439864487,460.0,0.00031179,30]
[377549881,1754439866256,460.0,0.00031179,30]
[377549882,1754439870731,460.0,0.00031179,30]
[377549883,1754439876593,460.0,0.00031179,30]
[377549884,1754439876846,460.0,0.00031179,30]
[377549885,1754439877112,460.0,0.00031179,30]
[377549886,1754439877370,460.0,0.00031179,30]
[377549887,1754439877611,427.96,0.00031179,30]
[377549888,1754439882814,460.0,0.00031179,30]
[377549889,1754439883595,460.0,0.00031179,30]
[377549890,1754439883932,460.0,0.00031179,30]
[377549891,1754439884914,460.0,0.00031179,30]
[377549892,1754439885106,460.0,0.00031179,30]
[377549893,1754439885670,460.0,0.00031179,30]
[377549894,1754439887111,460.0,0.00031179,30]
[377549895,1754439887398,460.0,0.00031179,30]
[377549896,1754439887763,460.0,0.00031179,30]
[377549897,1754439888486,460.0,0.00031179,30]
[377549898,1754439889171,460.0,0.00031179,30]
[377549899,1754439889586,460.0,0.00031179,30]
[377549900,1754439890056,443.37,0.00031179,30]
[377549901,1754439892030,460.0,0.00031179,30]
[377549902,1754439892327,460.0,0.00031179,30]
[377549903,1754439897415,217.0398842,0.00031179,30]
[377549939,1754440122123,151.000001,0.0002,120]
[377550035,1754440237705,-164.092982,0.00025794,2]
[377550036,1754440237716,-260.8863839,0.00026317,2]
[377550038,1754440237726,-2183.31810187,0.00026372,2]
[377550040,1754440237736,-2529.65367004,0.00026382,2]
[377550042,1754440237747,-500.0,0.00026387,2]
[377550043,1754440237767,-271.32845877,0.00026387,2]
[377550044,1754440237780,-575.21635758,0.00026387,2]
[377550045,1754440237791,-300.0,0.00026387,2]
[377550046,1754440237802,-12370.39247431,0.00026388,2]
[377550047,1754440237819,-12529.60752569,0.00026388,2]
[377550048,1754440237829,-2264.10087164,0.00026427,2]
[377550049,1754440237839,-2347.87260389,0.00026482,2]
[377550050,1754440237849,-2434.74389024,0.00026537,2]
[377550051,1754440237859,-2524.82941417,0.00026592,2]
[377550052,1754440237869,-160.3162146,0.000266,2]
[377550053,1754440237879,-400.9420535,0.000266,2]
[377550054,1754440237889,-578.9513623,0.000266,2]
[377550055,1754440237900,-292.9155566,0.000266,2]
[377550056,1754440237909,-160.3162146,0.000266,2]
[377550057,1754440237920,-578.9513623,0.000266,2]
[377550058,1754440237930,-292.9155566,0.000266,2]
[377550059,1754440237940,-160.3162146,0.000266,2]
[377550060,1754440237950,-292.9155566,0.000266,2]
[377550061,1754440237960,-578.9513623,0.000266,2]
[377550062,1754440237970,-984.32542564,0.00026647,2]
[377550063,1754440237980,-800.0,0.00026744,2]
[377550064,1754440237990,-170.13791,0.00026762,6]
[377550065,1754440237999,-500.0,0.0002678,2]
[377550066,1754440238009,-292.9155566,0.00026849,2]
[377550067,1754440238018,-578.9513623,0.00026849,2]
[377550068,1754440238028,-578.9513623,0.00026849,2]
[377550069,1754440238038,-292.9155566,0.00026849,2]
[377550070,1754440238048,-578.9513623,0.00026849,2]
[377550071,1754440238058,-292.9155566,0.00026849,2]
[377550072,1754440238068,-578.9513623,0.00026849,2]
[377550073,1754440238078,-292.9155566,0.00026849,2]
[377550074,1754440238092,-578.9513623,0.00026849,2]
[377550075,1754440238103,-578.9513623,0.00026849,2]
[377550076,1754440238113,-292.9155566,0.00026849,2]
[377550077,1754440238123,-578.9513623,0.00026849,2]
[377550078,1754440238133,-292.9155566,0.00026849,2]
[377550079,1754440238143,-441.6084823,0.00026849,2]
[377550080,1754440238152,-292.9155566,0.00026849,2]
[377550081,1754440238162,-292.9155566,0.00026849,2]
[377550082,1754440238172,-292.9155566,0.00026849,2]
[377550083,1754440238182,-292.9155566,0.00026849,2]
[377550084,1754440238191,-217.7753149,0.00026849,2]
[377550085,1754440238202,-160.3162146,0.000269,2]
[377550086,1754440238212,-153.0,0.000269,2]
[377550087,1754440238222,-292.9155566,0.000269,2]
[377550088,1754440238232,-578.9513623,0.000269,2]
[377550089,1754440238242,-292.9155566,0.000269,2]
[377550090,1754440238251,-160.3162146,0.000269,2]
[377550091,1754440238262,-578.9513623,0.000269,2]
[377550092,1754440238272,-292.9155566,0.000269,2]
[377550093,1754440238282,-160.3162146,0.000269,2]
[377550094,1754440238291,-578.9513623,0.000269,2]
[377550095,1754440238302,-161.4346216,0.00026907,2]
[377550096,1754440238311,-153.0,0.00026907,2]
[377550097,1754440238322,-153.0,0.00026907,2]
[377550098,1754440238332,-306.0,0.00026907,2]
[377550099,1754440238342,-153.0,0.00026907,2]
[377550100,1754440238352,-153.0,0.00026907,2]
[377550101,1754440238361,-320.6324292,0.00027041,2]
[377550102,1754440238372,-292.9155566,0.00027041,2]
[377550103,1754440238382,-578.9513623,0.00027041,2]
[377550104,1754440238392,-292.9155566,0.00027041,2]
[377550105,1754440238401,-422.3077007,0.00027123,2]
[377550106,1754440238411,-1036.0,0.000273,60]
[377550107,1754440238421,-292.9155566,0.000273,2]
[377550108,1754440238430,-160.3162146,0.000273,2]
[377550109,1754440238442,-578.9513623,0.000273,2]
[377550110,1754440238451,-292.9155566,0.000273,2]
[377550111,1754440238461,-578.9513623,0.000273,2]
[377550112,1754440238471,-160.3162146,0.000273,2]
[377550113,1754440238480,-153.0,0.000273,2]
[377550114,1754440238490,-153.0,0.000273,2]
[377550115,1754440238502,-578.9513623,0.000273,2]
[377550116,1754440238511,-160.3162146,0.000273,2]
[377550117,1754440238520,-430.7234783,0.000273,2]
[377550118,1754440238531,-292.9155566,0.000273,2]
[377550119,1754440238540,-153.0,0.000273,2]
[377550120,1754440238551,-292.9155566,0.000273,2]
[377550121,1754440238561,-160.3162146,0.000273,2]
[377550122,1754440238572,-578.9513623,0.000273,2]
[377550123,1754440238583,-160.0,0.0002732,2]
[377550124,1754440238594,-160.0,0.00027336,3]
[377550125,1754440238604,-500.0,0.00027397,2]
[377550126,1754440238614,-160.0,0.00027472,4]
[377550127,1754440238624,-800.0,0.00027553,2]
[377550128,1754440238635,-160.0,0.00027608,5]
[377550129,1754440238645,-151.0,0.00027622,2]
[377550130,1754440238654,-815.94912087,0.00027629,2]
[377550131,1754440238664,-267.58,0.00027629,3]
[377550132,1754440238673,-802.78,0.00027629,3]
[377550133,1754440238684,-128381.38708238,0.00027639,2]
[377550134,1754440238694,-151.0,0.00027671,7]
[377550135,1754440238705,-151.0,0.00027671,7]
[377550136,1754440238718,-151.0,0.00027671,7]
[377550137,1754440238728,-151.0,0.00027671,7]
[377550138,1754440238738,-500.0,0.00027671,2]
[377550139,1754440238749,-160.0,0.00027671,30]
[377550140,1754440238759,-160.0,0.00027671,30]
[377550141,1754440238768,-461.15695721,0.00027671,30]
[377550142,1754440238778,-842.25606042,0.00027671,30]
[377550143,1754440238788,-231.72586818,0.00027671,30]
[377550144,1754440238798,-216.4206905,0.00027671,30]
[377550145,1754440238808,-500.0,0.00027673,5]
[377550146,1754440238817,-500.0,0.00027673,2]
[377550147,1754440238827,-643.90803113,0.00027673,2]
[377550148,1754440238837,-152.0,0.000277,4]
[377550149,1754440238846,-13227.78802556,0.000277,8]
[377550150,1754440238857,-153.0,0.00027707,30]
[377550151,1754440238866,-153.0,0.00027707,30]
[377550152,1754440238876,-306.0,0.00027707,30]
[377550153,1754440238885,-153.0,0.00027707,30]
[377550154,1754440238895,-153.0,0.00027707,30]
[377550155,1754440238904,-153.0,0.00027707,30]
[377550156,1754440238914,-153.0,0.00027729,30]
[377550157,1754440238924,-153.0,0.00027729,30]
[377550158,1754440238934,-153.0,0.00027729,30]
[377550159,1754440238945,-306.0,0.00027729,30]
[377550160,1754440238955,-153.0,0.00027729,30]
[377550161,1754440238965,-153.0,0.00027729,30]
[377550162,1754440238975,-153.0,0.00027729,30]
[377550163,1754440238984,-153.0,0.00027729,30]
[377550164,1754440238994,-153.0,0.00027729,30]
[377550165,1754440239003,-153.0,0.00027729,30]
[377550166,1754440239013,-160.0,0.00027744,6]
[377550167,1754440239024,-160.0,0.00027778,3]
[377550168,1754440239034,-160.0,0.00027778,3]
[377550169,1754440239044,-160.0,0.00027778,3]
[377550170,1754440239054,-260.0,0.00027868,2]
[377550171,1754440239064,-160.0,0.0002788,7]
[377550172,1754440239074,-500.0,0.0002789,2]
[377550173,1754440239084,-271.98304029,0.00027912,2]
[377550174,1754440239094,-2000.0,0.00027921,2]
[377550175,1754440239104,-430.7234783,0.00027922,30]
[377550176,1754440239114,-430.7234783,0.00027922,30]
[377550177,1754440239123,-430.7234783,0.00027922,30]
[377550178,1754440239133,-430.7234783,0.00027922,30]
[377550179,1754440239143,-430.7234783,0.00027922,30]
[377550180,1754440239153,-430.7234783,0.00027922,30]
[377550181,1754440239162,-430.7234783,0.00027922,30]
[377550182,1754440239172,-160.0,0.00027936,2]
[377550183,1754440239182,-160.0,0.00027936,2]
[377550184,1754440239192,-312.16666667,0.00027936,2]
[377550185,1754440239202,-160.0,0.00027936,2]
[377550186,1754440239213,-231.72586818,0.00027936,2]
[377550187,1754440239223,-160.0,0.0002794,3]
[377550188,1754440239235,-160.0,0.0002794,3]
[377550189,1754440239246,-461.15695721,0.0002794,3]
[377550190,1754440239256,-842.25606042,0.0002794,3]
[377550192,1754440239266,-231.72586818,0.0002794,3]
[377550193,1754440239278,-216.4206905,0.0002794,3]
[377550194,1754440239289,-7853.22119506,0.0002794,3]
[377550195,1754440239299,-160.0,0.0002794,3]
[377550196,1754440239310,-312.16666667,0.0002794,3]
[377550197,1754440239320,-151.0,0.00027945,7]
[377550198,1754440239332,-151.0,0.00027945,7]
[377550199,1754440239342,-151.0,0.00027945,7]
[377550200,1754440239352,-151.0,0.00027945,7]
[377550201,1754440239362,-500.0,0.00027945,2]
[377550202,1754440239371,-800.0,0.00027947,2]
[377550203,1754440239381,-461.15695721,0.0002797,2]
[377550204,1754440239390,-160.0,0.0002797,2]
[377550205,1754440239400,-527.3554621,0.0002797,2]
[377550206,1754440239410,-842.25606042,0.0002797,2]
[377550207,1754440239421,-160.0,0.0002797,2]
[377550208,1754440239432,-216.4206905,0.0002797,2]
[377550209,1754440239442,-160.0,0.0002797,2]
[377550210,1754440239452,-150.0,0.00027973,5]
[377550211,1754440239461,-150.83960042,0.00027973,5]
[377550212,1754440239471,-521.3620583,0.00027973,5]
[377550213,1754440239481,-271.98304029,0.00027977,2]
[377550214,1754440239490,-215.21874788,0.00027981,2]
[377550215,1754440239502,-160.0,0.00027981,2]
[377550216,1754440239512,-160.0,0.00027981,2]
[377550217,1754440239521,-160.0,0.00027981,2]
[377550218,1754440239531,-12655.02535889,0.00027983,2]
[377550219,1754440239542,-552.31596102,0.00028,2]
[377550220,1754440239552,-160.0,0.00028016,8]
[377550221,1754440239561,-800.0,0.00028024,2]
[377550222,1754440239571,-500.0,0.00028073,5]
[377550223,1754440239582,-160.0,0.00028087,7]
[377550224,1754440239593,-160.0,0.00028087,7]
[377550225,1754440239602,-160.0,0.00028087,7]
[377550226,1754440239612,-160.0,0.00028087,7]
[377550227,1754440239621,-461.15695721,0.00028087,7]
[377550228,1754440239631,-842.25606042,0.00028087,7]
[377550229,1754440239640,-231.72586818,0.00028087,7]
[377550230,1754440239650,-216.4206905,0.00028087,7]
[377550231,1754440239660,-160.0,0.00028087,7]
[377550232,1754440239670,-312.16666667,0.00028087,7]
[377550233,1754440239679,-160.0,0.00028152,9]
[377550234,1754440239689,-151.0,0.00028219,7]
[377550235,1754440239699,-151.0,0.00028219,7]
[377550236,1754440239709,-151.0,0.00028219,7]
[377550237,1754440239719,-151.0,0.00028219,7]
[377550238,1754440239729,-151.0,0.00028219,7]
[377550239,1754440239739,-151.0,0.00028219,7]
[377550240,1754440239748,-151.0,0.00028219,7]
[377550241,1754440239759,-151.0,0.00028219,7]
[377550242,1754440239768,-194.159346,0.00028219,7]
[377550243,1754440239778,-174.18347,0.00028219,7]
[377550244,1754440239787,-174.18347,0.00028219,7]
[377550245,1754440239797,-500.0,0.00028219,2]
[377550246,1754440239807,-1000.0,0.00028221,5]
[377550247,1754440239816,-1758.0,0.00028227,7]
[377550248,1754440239826,-1758.0,0.00028227,7]
[377550249,1754440239835,-1758.0,0.00028227,7]
[377550250,1754440239846,-1758.0,0.00028227,7]
[377550251,1754440239856,-1758.0,0.00028227,7]
[377550252,1754440239866,-1758.0,0.00028227,7]
[377550253,1754440239875,-428.12713664,0.00028227,7]
[377550256,1754440239890,-1329.87286336,0.00028227,7]
[377550258,1754440239900,-1276.28913974,0.00028227,7]
[377550259,1754440240306,-481.71086026,0.00028227,7]
[377550260,1754440240316,-202.80794491,0.00028227,7]
[377550261,1754440240327,-122.19205509,0.00028227,7]
[377550262,1754440240337,-325.0,0.00028227,7]
[377550263,1754440240347,-325.0,0.00028227,7]
[377550264,1754440240357,-466.97712863,0.00028263,2]
[377550280,1754440242799,-430.7234783,0.00027922,30]
[377550281,1754440242810,-205.98200473,0.00028263,2]
[377550282,1754440242820,-332.53349984,0.00028263,2]
[377550283,1754440242854,-11547.85503441,0.00028263,2]
[377550284,1754440242864,-160.0,0.00028288,10]
[377550285,1754440242874,-151.2598,0.00028351,2]
[377550286,1754440242884,-271.98304029,0.00028353,2]
[377550287,1754440242894,-5516.94440763,0.00028362,2]
[377550288,1754440242903,-1758.0,0.00028363,7]
[377550289,1754440242912,-1758.0,0.00028363,7]
[377550291,1754440242922,-1758.0,0.00028363,7]
[377550293,1754440242931,-1758.0,0.00028363,7]
[377550295,1754440242941,-1758.0,0.00028363,7]
[377550297,1754440242952,-1758.0,0.00028363,7]
[377550298,1754440242963,-1758.0,0.00028363,7]
[377550299,1754440242973,-1758.0,0.00028363,7]
[377550300,1754440242983,-1758.0,0.00028363,7]
[377550301,1754440242992,-333.10662728,0.00028363,7]
[377550302,1754440243002,-1758.0,0.00028363,7]
[377550303,1754440243012,-1758.0,0.00028363,7]
[377550304,1754440243021,-1758.0,0.00028363,7]
[377550306,1754440243031,-1758.0,0.00028363,7]
[377550307,1754440243041,-1758.0,0.00028363,7]
[377550308,1754440243052,-1758.0,0.00028363,7]
[377550309,1754440243063,-1758.0,0.00028363,7]
[377550310,1754440243073,-1758.0,0.00028363,7]
[377550311,1754440243082,-1758.0,0.00028363,7]
[377550312,1754440243092,-28.30755839,0.00028363,7]
[377550313,1754440243104,-1729.69244161,0.00028363,7]
[377550314,1754440243114,-688.61649863,0.00028363,7]
[377550315,1754440243124,-842.25606042,0.00028363,7]
[377550316,1754440243134,-231.72586818,0.00028363,7]
[377550317,1754440243144,-216.4206905,0.00028363,7]
[377550318,1754440243154,-312.16666667,0.00028363,7]
[377550319,1754440243164,-253.273501,0.00028363,7]
[377550320,1754440243173,-151.0,0.00028363,7]
[377550321,1754440243183,-197.734371,0.00028363,7]
[377550322,1754440243192,-197.734371,0.00028363,7]
[377550323,1754440243202,-252.910501,0.00028363,7]
[377550324,1754440243211,-151.0,0.00028363,7]
[377550325,1754440243221,-252.910501,0.00028363,7]
[377550326,1754440243230,-500.0,0.00028373,5]
[377550327,1754440243240,-360.0,0.00028416,2]
[377550328,1754440243250,-160.0,0.00028424,11]
[377550329,1754440243259,-162.5,0.0002844,15]
[377550330,1754440243269,-204.2,0.00028448,15]
[377550331,1754440243279,-160.3162146,0.0002849,30]
[377550332,1754440243288,-160.3162146,0.0002849,30]
[377550333,1754440243297,-160.3162146,0.0002849,30]
[377550334,1754440243307,-174.36952065,0.0002849,30]
[377550335,1754440243323,-131.63047935,0.0002849,30]
[377550336,1754440243333,-312.16666667,0.0002849,30]
[377550337,1754440243342,-56.20285398,0.00028493,7]
[377550338,1754440243353,-94.79714602,0.00028493,7]
[377550339,1754440243364,-151.0,0.00028493,7]
[377550340,1754440243373,-160.004323,0.00028493,7]
[377550341,1754440243382,-152.100105,0.00028493,7]
[377550342,1754440243391,-875.38895061,0.00028493,2]
[377550343,1754440243401,-174.18347,0.00028493,7]
[377550344,1754440243411,-174.18347,0.00028493,7]
[377550345,1754440243423,-3498.05424665,0.00028493,2]
[377550346,1754440243432,-151.0,0.00028493,7]
[377550347,1754440243441,-151.0,0.00028493,7]
[377550348,1754440243450,-151.0,0.00028493,7]
[377550349,1754440243460,-500.0,0.00028493,2]
[377550350,1754440243469,-151.0,0.00028493,7]
[377550351,1754440243479,-152.621314,0.00028493,7]
[377550352,1754440243490,-151.0,0.00028493,7]
[377550353,1754440243503,-151.0,0.00028493,7]
[377550354,1754440243514,-151.0,0.000285,7]
[377550355,1754440243524,-151.0,0.000285,7]
[377550356,1754440243533,-578.9513623,0.00028512,30]
[377550357,1754440243544,-200.0,0.00028521,5]
[377550358,1754440243554,-162.5,0.0002854,15]
[377550359,1754440243564,-420.0,0.00028545,2]
[377550360,1754440243574,-119.23008086,0.0002856,12]
[377550368,1754440245867,-527.3554621,0.0002794,3]
[377550369,1754440245877,-527.3554621,0.00028087,7]
[377550370,1754440245887,-40.76991914,0.0002856,12]
[377550371,1754440245897,-204.2,0.00028561,15]
[377550372,1754440245906,-271.98304029,0.00028611,2]
[377550373,1754440245916,-539.86957383,0.00028621,5]
[377550374,1754440245929,-333.67086873,0.00028621,5]
[377550375,1754440245944,-126.45955744,0.00028621,5]
[377550376,1754440245955,-162.5,0.0002864,15]
[377550378,1754440245964,-60.79561555,0.00028661,15]
[377550380,1754440245975,-143.40438445,0.00028661,15]
[377550382,1754440245985,-153.885592,0.00028667,7]
[377550384,1754440245995,-151.0,0.00028667,7]
[377550386,1754440246005,-151.0,0.00028667,7]
[377550387,1754440246015,-151.0,0.00028667,7]
[377550388,1754440246024,-156.496264,0.00028667,7]
[377550389,1754440246034,-151.0,0.00028667,7]
[377550390,1754440246043,-151.0,0.00028667,7]
[377550391,1754440246052,-151.0,0.00028667,7]
[377550392,1754440246063,-151.0,0.00028667,7]
[377550393,1754440246072,-151.0,0.00028667,7]
[377550394,1754440246082,-151.0,0.00028667,7]
[377550395,1754440246092,-151.0,0.00028667,7]
[377550396,1754440246101,-170.13791,0.00028667,2]
[377550397,1754440246110,-226.275322,0.00028667,7]
[377550398,1754440246120,-151.0,0.00028667,7]
[377550399,1754440246129,-226.275322,0.00028667,7]
[377550400,1754440246143,-151.0,0.00028667,7]
[377550401,1754440246156,-151.0,0.00028667,7]
[377550402,1754440246168,-151.0,0.00028667,7]
[377550403,1754440246181,-151.0,0.00028667,7]
[377550404,1754440246193,-151.0,0.00028667,7]
[377550405,1754440246205,-151.0,0.00028667,7]
[377550406,1754440246216,-151.0,0.00028667,7]
[377550407,1754440246226,-151.0,0.00028667,7]
[377550408,1754440246237,-151.0,0.00028667,7]
[377550409,1754440246248,-151.0,0.00028667,7]
[377550410,1754440246260,-347.132823,0.00028667,7]
[377550411,1754440246272,-347.132823,0.00028667,7]
[377550412,1754440246283,-397.866689,0.00028667,7]
[377550413,1754440246294,-397.866689,0.00028667,7]
[377550414,1754440246305,-307.709595,0.00028667,7]
[377550415,1754440246316,-307.709595,0.00028667,7]
[377550416,1754440246328,-151.0,0.00028667,7]
[377550417,1754440246340,-151.0,0.00028687,7]
[377550418,1754440246352,-151.0,0.00028687,7]
[377550419,1754440246364,-151.0,0.00028687,7]
[377550420,1754440246374,-160.0,0.00028696,13]
[377550421,1754440246387,-151.0,0.00028718,7]
[377550422,1754440246398,-294.670921,0.00028718,7]
[377550423,1754440246410,-151.0,0.00028718,7]
[377550424,1754440246422,-216.4206905,0.00028718,10]
[377550425,1754440246435,-13227.78802544,0.00028718,10]
[377550426,1754440246446,-527.3554621,0.0002872,10]
[377550427,1754440246458,-162.5,0.0002874,15]
[377550428,1754440246469,-500.0,0.00028743,5]
[377550429,1754440246480,-312.16666667,0.00028767,7]
[377550430,1754440246492,-151.0,0.00028767,7]
[377550431,1754440246512,-174.18347,0.00028767,7]
[377550432,1754440246523,-174.18347,0.00028767,7]
[377550433,1754440246535,-151.0,0.00028767,7]
[377550434,1754440246546,-151.0,0.00028767,7]
[377550435,1754440246557,-151.0,0.00028767,7]
[377550436,1754440246570,-151.0,0.00028767,7]
[377550437,1754440246582,-151.0,0.00028767,7]
[377550438,1754440246593,-151.0,0.00028767,7]
[377550439,1754440246608,-151.0,0.00028767,7]
[377550440,1754440246618,-151.0,0.00028767,7]
[377550441,1754440246631,-500.0,0.00028767,2]
[377550442,1754440246645,-251.820518,0.00028767,7]
[377550443,1754440246656,-251.820518,0.00028767,7]
[377550444,1754440246666,-160.0,0.00028767,7]
[377550445,1754440246677,-151.0,0.00028767,7]
[377550446,1754440246688,-151.0,0.00028767,7]
[377550447,1754440246698,-151.0,0.00028767,7]
[377550448,1754440246710,-151.0,0.00028767,7]
[377550449,1754440246721,-1541.364725,0.00028767,7]
[377550450,1754440246733,-1541.364725,0.00028767,7]
[377550451,1754440246744,-1500.0,0.00028768,5]
[377550452,1754440246755,-271.98304029,0.00028771,2]